[Event "3rd HoliCup Lake City 2019"]
[Site "Udaipur"]
[Date "2019.03.29"]
[Round "4.15"]
[White "Dhiraj, Patil"]
[Black "Hitesh, S. Jariya"]
[Result "1-0"]
[ECO "A45"]
[WhiteElo "1425"]
[BlackElo "1871"]
[Annotator "NA"]
[PlyCount "65"]
[EventDate "2019.??.??"]
[EventCountry "IND"]
[SourceTitle "playchess.com"]
[Source "ChessBase"]
[SourceQuality "1"]
[TimeControl "5400+30"]

1. d4 {[%emt 0:00:00]} Nf6 {[%emt 0:00:54]} 2. Bg5 {[%emt 0:00:00]} c5 {[%emt 0:00:28]} 3. d5 {[%emt 0:00:02]} Ne4 {[%emt 0:00:38]} 4. Bf4 {[%emt 0:00:17]} e6 {[%emt 0:00:36]} 5. dxe6 {[%emt 0:02:25]} (5. f3 Qa5+ 6. c3 Nf6 7. e4 exd5 8. exd5 d6 9. Na3 Be7 10. Ne2 O-O 11. Ng3 Re8 12. Be2 Bf8 13. O-O a6 14. Nc4 Qc7 15. a4 b6 16. Ne3 {½-½ (49) Andreikin,D (2743)-Marin,M (2576) Almaty 2016}) 5... fxe6 {[%emt 0:02:27]} 6. Nd2 {[%emt 0:02:54] A45: Trompowsky Attack} Qf6 {[%emt 0:07:45]} 7. Nxe4 {[%emt 0:00:14]} Qxf4 {[%emt 0:00:19]} 8. Nc3 $146 {[%emt 0:01:39]} ({Predecessor:} 8. Qd3 d5 9. Ng3 Qb4+ 10. Qc3 Qxc3+ 11. bxc3 Be7 12. e3 Bf6 {0-1 (31) Leppert,H (1822)-Pajeken,W (2326) Bad Zwischenahn 2003}) 8... Be7 {[%emt 0:02:19]} 9. e3 {[%emt 0:00:39]} Qb4 {[%emt 0:01:09]} 10. Rb1 {[%emt 0:01:35]} O-O {[%emt 0:07:06]} 11. a3 {[%emt 0:02:22]} Qa5 {[%emt 0:01:55]} 12. Bd3 {[%emt 0:00:36]} Bf6 {[%emt 0:02:31]} 13. Qd2 {[%emt 0:03:01]} Nc6 {[%emt 0:01:54]} 14. Nf3 {[%emt 0:02:38]} d5 {[%emt 0:02:35]} 15. O-O {[%emt 0:00:27]} c4 {[%emt 0:03:19]} 16. Be2 {[%emt 0:02:50]} Bxc3 {[%emt 0:00:18]} 17. Qxc3 {[%emt 0:00:33]} Qxc3 {[%emt 0:00:12]} 18. bxc3 {[%emt 0:00:05]} b6 {[%emt 0:02:39]} 19. Nd4 {[%emt 0:00:19]} Bd7 {[%emt 0:01:58]} 20. Bg4 {[%emt 0:00:34]} Rae8 {[%emt 0:00:35]} 21. f4 {[%emt 0:01:53]} Nb8 {[%emt 0:05:03]} 22. Nf3 {[%emt 0:01:46]} Na6 {[%emt 0:00:56]} 23. Ne5 {[%emt 0:00:44]} Ba4 {[%emt 0:02:07]} 24. Rf2 {[%emt 0:00:58]} Nc5 {[%emt 0:01:07]} 25. Bf3 {[%emt 0:00:19]} Re7 {[%emt 0:03:31]} 26. Rb4 {[%emt 0:01:16]} Be8 {[%emt 0:00:36]} 27. h4 {[%emt 0:01:20]} Na4 {[%emt 0:01:11]} 28. Rxa4 {[%emt 0:05:53]} Bxa4 {[%emt 0:00:41]} 29. g3 {[%emt 0:00:52]} Rc7 {[%emt 0:05:42]} 30. Rd2 $19 {[%emt 0:00:14]} Rd8 {[%emt 0:02:56]} 31. Kf2 {[%emt 0:00:19]} Be8 {[%emt 0:01:11]} 32. Ke2 {[%emt 0:00:15]} Bf7 {[%emt 0:01:45]} 33. Rd1 {[%emt 0:01:25]} 1-0

[Event "3rd HoliCup Lake City 2019"]
[Site "Udaipur"]
[Date "2019.03.29"]
[Round "4.16"]
[White "Nanda, Kumar T.S."]
[Black "Gupta, Dinesh"]
[Result "1-0"]
[ECO "B51"]
[WhiteElo "1846"]
[BlackElo "1593"]
[Annotator "NA"]
[PlyCount "81"]
[EventDate "2019.??.??"]
[EventCountry "IND"]
[SourceTitle "playchess.com"]
[Source "ChessBase"]
[SourceQuality "1"]
[TimeControl "5400+30"]

1. e4 {[%emt 0:00:10]} c5 {[%emt 0:00:00]} 2. Nf3 {[%emt 0:00:26]} d6 {[%emt 0:00:00]} 3. Bb5+ {[%emt 0:00:52]} Nc6 {[%emt 0:00:00]} 4. O-O {[%emt 0:00:15]} e6 {[%emt 0:00:06]} 5. c3 {[%emt 0:00:11]} a6 {[%emt 0:00:28]} 6. Bxc6+ {[%emt 0:02:01]} bxc6 7. d4 d5 {[%emt 0:01:29]} 8. exd5 {[%emt 0:02:32]} cxd5 {[%emt 0:00:04]} 9. Ne5 {[%emt 0:01:30]} Nf6 {[%emt 0:00:33]} 10. Bg5 {[%emt 0:00:27]} h6 {[%emt 0:01:47]} 11. Bh4 {[%emt 0:06:46]} Qb6 {[%emt 0:00:49]} 12. Na3 {[%emt 0:14:16]} Bd6 {[%emt 0:01:03]} 13. Rb1 {[%emt 0:11:50]} Nd7 {[%emt 0:06:26]} 14. Qg4 {[%emt 0:09:37]} Nxe5 {[%emt 0:02:10]} 15. dxe5 {[%emt 0:00:56]} Bxe5 $16 {[%emt 0:05:38] [#]} (15... Bf8 $1 $11 {remains equal.}) 16. f4 $1 {[%emt 0:00:23]} h5 {[%emt 0:06:53]} 17. Qg3 {[%emt 0:03:05]} Bf6 {[%emt 0:00:29]} 18. Bxf6 {[%emt 0:00:11]} gxf6 {[%emt 0:00:01]} 19. Qg7 {[%emt 0:00:18]} Rf8 {[%emt 0:00:07]} 20. Qxf6 {[%emt 0:00:35]} Qd8 {[%emt 0:00:05]} 21. Qh6 {[%emt 0:01:58]} Qh4 {[%emt 0:01:31]} 22. f5 {[%emt 0:02:22]} Rg8 {[%emt 0:02:27]} 23. fxe6 {[%emt 0:08:03]} Bxe6 {[%emt 0:01:38]} 24. Rbe1 {[%emt 0:01:08]} Qg4 {[%emt 0:04:29]} 25. Rf2 {[%emt 0:03:01]} O-O-O {[%emt 0:01:04]} 26. Qd2 {[%emt 0:05:59]} d4 {[%emt 0:01:38]} 27. c4 {[%emt 0:02:59]} Rd6 {[%emt 0:02:21]} 28. b4 {[%emt 0:03:49]} Qg5 {[%emt 0:00:59]} 29. bxc5 {[%emt 0:02:58]} Qxc5 {[%emt 0:00:46]} 30. Nc2 {[%emt 0:02:31]} d3 {[%emt 0:01:06]} 31. Ne3 {[%emt 0:00:54]} Rgd8 {[%emt 0:02:05]} 32. Kh1 {[%emt 0:00:34]} h4 {[%emt 0:00:10]} 33. h3 {[%emt 0:00:59]} Kb7 {[%emt 0:06:50]} 34. Rf4 {[%emt 0:02:23]} Rd4 {[%emt 0:06:23]} 35. Rb1+ {[%emt 0:00:41]} Kc7 {[%emt 0:10:58]} 36. Rxd4 {[%emt 0:01:26]} Qxd4 {[%emt 0:07:43]} 37. Qa5+ {[%emt 0:00:10]} Kd7 {[%emt 0:00:27]} 38. Rb7+ {[%emt 0:01:57]} Ke8 {[%emt 0:00:23]} 39. Qg5 {[%emt 0:00:34]} Kf8 {[%emt 0:01:26]} 40. Nd5 {[%emt 0:00:40]} Re8 {[%emt 0:07:43]} 41. Nf6 {[%emt 0:01:00]} 1-0

[Event "3rd HoliCup Lake City 2019"]
[Site "Udaipur"]
[Date "2019.03.29"]
[Round "4.17"]
[White "Sanchit, Anand"]
[Black "Khedkar, Prasad"]
[Result "1-0"]
[ECO "B13"]
[WhiteElo "1817"]
[BlackElo "1545"]
[Annotator "NA"]
[PlyCount "71"]
[EventDate "2019.??.??"]
[EventCountry "IND"]
[SourceTitle "playchess.com"]
[Source "ChessBase"]
[SourceQuality "1"]
[TimeControl "5400+30"]

1. e4 {[%emt 0:00:00]} c6 {[%emt 0:00:00]} 2. d4 {[%emt 0:00:00]} d5 {[%emt 0:00:00]} 3. exd5 {[%emt 0:00:00]} cxd5 {[%emt 0:00:00]} 4. Bd3 {[%emt 0:00:15]} Nc6 {[%emt 0:00:00]} 5. c3 {[%emt 0:00:08]} Nf6 {[%emt 0:00:03]} 6. Bf4 {[%emt 0:00:10]} g6 {[%emt 0:01:06]} 7. Nf3 {[%emt 0:00:39]} Bg7 {[%emt 0:03:36]} 8. O-O {[%emt 0:00:12]} Nh5 {[%emt 0:01:39] B13: Caro-Kann: Exchange Variation and Panov-Botvinnik Attack} (8... O-O 9. Ne5 Bf5 10. Bxf5 gxf5 11. Nd2 e6 12. Nd3 Kh8 13. h3 Rg8 14. Kh1 Ne4 15. f3 Nxd2 16. Qxd2 Ne7 17. g4 Ng6 18. gxf5 Nxf4 19. Qxf4 {½-½ (34) Kovalev,V (2636)-Popov,I (2609) Sochi 2017}) 9. Be3 {[%emt 0:02:18]} O-O {[%emt 0:07:26]} 10. h3 {[%emt 0:07:48]} b6 $146 {[%emt 0:08:05]} ({Predecessor:} 10... e5 11. dxe5 Nxe5 12. Nxe5 Bxe5 13. Qa4 Qc7 14. Nd2 Bd7 15. Bb5 Be6 16. Nf3 Bg7 17. Nd4 {½-½ (75) Ranic,V (1953)-Georgieva,E (1851) Paracin 2016}) 11. Re1 {[%emt 0:01:48]} Bb7 {[%emt 0:00:13]} 12. Qd2 {[%emt 0:02:35]} Re8 {[%emt 0:01:42]} 13. Bh6 {[%emt 0:00:18]} Bh8 {[%emt 0:01:44]} 14. Na3 {[%emt 0:06:49]} a6 {[%emt 0:10:42]} 15. Nc2 {[%emt 0:00:30]} Rc8 {[%emt 0:04:47]} ({Better is} 15... e5 $14) 16. Ne5 {[%emt 0:04:25]} Nxe5 {[%emt 0:14:33]} (16... Ra8 $16) 17. dxe5 {[%emt 0:00:16]} Ng7 {[%emt 0:05:12]} 18. Nd4 {[%emt 0:09:05]} Ne6 $2 {[%emt 0:01:14]} (18... b5 {was called for.} 19. a4 bxa4 20. Rxa4 Qd7) 19. Nxe6 {[%emt 0:05:50]} fxe6 {[%emt 0:00:01]} 20. Qg5 {[%emt 0:00:40]} Kf7 {[%emt 0:01:07]} 21. Qf4+ {[%emt 0:01:12]} Kg8 {[%emt 0:00:13]} 22. Re3 {[%emt 0:06:20]} Bg7 {[%emt 0:06:44]} 23. h4 {[%emt 0:10:12]} Rf8 {[%emt 0:03:32]} 24. Qg5 {[%emt 0:00:15]} d4 {[%emt 0:03:39] [#]} 25. Rg3 $18 {[%emt 0:06:53]} Qe8 {[%emt 0:09:28]} 26. h5 {[%emt 0:01:53]} Rf5 {[%emt 0:08:00]} 27. Bxf5 {[%emt 0:02:23]} exf5 {[%emt 0:00:02]} 28. Bxg7 {[%emt 0:01:41]} Kxg7 {[%emt 0:00:16]} 29. hxg6 {[%emt 0:02:38]} hxg6 {[%emt 0:00:01]} 30. cxd4 {[%emt 0:03:18]} Qf7 {[%emt 0:00:40]} 31. Rc1 {[%emt 0:00:31]} f4 {[%emt 0:05:13]} 32. Rgc3 {[%emt 0:00:31]} Re8 {[%emt 0:02:45]} 33. Rc7 {[%emt 0:01:26]} Be4 {[%emt 0:00:13]} 34. e6 {[%emt 0:01:28]} Qxe6 {[%emt 0:00:42]} 35. Qxf4 {[%emt 0:00:31]} Kg8 {[%emt 0:01:12]} 36. Re1 {[%emt 0:00:52]} 1-0

[Event "3rd HoliCup Lake City 2019"]
[Site "Udaipur"]
[Date "2019.03.30"]
[Round "5"]
[White "Rathore, S.K."]
[Black "Pingale Shivraj"]
[Result "0-1"]
[ECO "A21"]
[WhiteElo "2092"]
[BlackElo "1600"]
[Annotator "NA RC"]
[PlyCount "52"]
[EventDate "2019.??.??"]
[EventCountry "IND"]
[SourceTitle "playchess.com"]
[Source "ChessBase"]
[SourceQuality "1"]
[TimeControl "5400+30"]

1. c4 e5 2. Nc3 Nc6 3. g3 f5 4. Bg2 Nf6 5. d3 g6 6. f4 d6 7. Nf3 Bg7 8. O-O O-O 9. Rb1 exf4 10. Bxf4 Ne7 $14 11. Qc1 c6 12. b4 d5 13. Be5 h6 14. cxd5 Nexd5 15. Nh4 Kh7 16. Nxd5 Nxd5 17. Bxg7 Kxg7 18. e4 Ne7 19. Qc3+ Kh7 20. Rbe1 Bd7 21. Qe5 Rf7 22. g4 g5 23. Nxf5 Ng6 24. Qd6 Bxf5 25. exf5 Qxd6 26. fxg6+ Kxg6 0-1

[Event "3rd HoliCup Lake City 2019"]
[Site "Udaipur"]
[Date "2019.03.30"]
[Round "5"]
[White "Himanshu Ranjan"]
[Black "Dadwani Sahil"]
[Result "1/2-1/2"]
[ECO "E92"]
[WhiteElo "1984"]
[BlackElo "1605"]
[Annotator "NA RC"]
[PlyCount "96"]
[EventDate "2019.??.??"]
[EventCountry "IND"]
[SourceTitle "playchess.com"]
[Source "ChessBase"]
[SourceQuality "1"]
[TimeControl "5400+30"]

1. d4 Nf6 2. c4 g6 3. Nc3 Bg7 4. e4 d6 5. Nf3 O-O 6. Be2 e5 7. dxe5 dxe5 8. Qxd8 Rxd8 9. Bg5 Re8 10. Nd5 Nxd5 11. cxd5 f6 12. Be3 {E92: King's Indian: Classical: 6 Be2 e5: 7 dxe5, 7 Be3 and Petrosian System without 7...Nbd7} Bf8 13. Nd2 Bd7 (13... Nd7 14. Rc1 f5 15. f3 Bd6 16. O-O Nf6 17. h3 Bd7 18. g4 h5 19. g5 f4 {1-0 (45) Stillger,B (2279)-Ducarmon,R (2092) Vlissingen 2015}) 14. Bc4 Bd6 15. Ke2 $146 ({Predecessor:} 15. O-O Kg7 16. Bb3 c6 17. Rfd1 cxd5 18. Bxd5 Bc6 19. Nc4 Bf8 20. Bxc6 Nxc6 {½-½ (57) Landgren,A-Swan,U Hallstahammar 1993}) 15... b5 16. Bb3 a5 17. a3 Na6 18. Rhc1 Kg7 19. Ba2 a4 20. Bb1 Rab8 21. Bd3 Ra8 22. b4 Rec8 23. Rc3 Rab8 24. Rac1 Re8 25. R3c2 Rf8 26. Nb1 Rb7 27. Nc3 Ra8 28. f3 Kf7 29. Na2 Kg7 30. Rb1 Rc8 31. Kd2 Rd8 32. Be2 Be8 33. Ke1 Rc8 34. Nc1 c5 35. dxc6 Rxc6 36. Rxc6 Bxc6 37. Nd3 Kf7 38. Rc1 Bd7 39. Kd2 Rc7 40. Bc5 Ke7 41. g3 Bxc5 42. Nxc5 Nxc5 43. Rxc5 Rb7 44. Ke3 Rb6 45. f4 Rc6 46. Kd2 exf4 47. Rxc6 (47. gxf4 $16 h5 48. Rxb5) 47... Bxc6 48. gxf4 h6 $11 1/2-1/2

[Event "3rd HoliCup Lake City 2019"]
[Site "Udaipur"]
[Date "2019.03.30"]
[Round "5"]
[White "Rohit, Singh Rana"]
[Black "Gupta Dinesh"]
[Result "1/2-1/2"]
[ECO "A46"]
[WhiteElo "1896"]
[BlackElo "1593"]
[Annotator "NA RC"]
[PlyCount "102"]
[EventDate "2019.??.??"]
[EventCountry "IND"]
[SourceTitle "playchess.com"]
[Source "ChessBase"]
[SourceQuality "1"]
[TimeControl "5400+30"]

1. d4 Nf6 2. Bf4 e6 3. Nf3 a6 4. Nbd2 b5 5. c3 Bb7 6. e3 d5 7. Bd3 Nbd7 8. h3 c5 9. a3 Be7 10. Ne5 c4 11. Bc2 a5 12. Ndf3 b4 13. Nxd7 Nxd7 14. Ba4 O-O 15. Bxd7 Qxd7 16. Ne5 Qd8 17. Qg4 f5 18. Qh5 Qe8 19. Qxe8 Rfxe8 20. h4 Ra6 21. axb4 axb4 22. Rxa6 Bxa6 23. Nc6 b3 24. Nxe7+ Rxe7 25. Ke2 Ra7 26. Ra1 Ra8 27. Bd6 Bb7 28. Rxa8+ Bxa8 29. Kf3 h5 30. Kf4 g6 31. f3 Kf7 32. Be5 Bc6 33. g4 hxg4 34. fxg4 fxg4 35. Kxg4 Bb7 36. Kg5 Bc6 37. Kh6 Bb7 38. Kh7 Bc6 39. Kh6 Bb7 40. Kg5 Bc6 41. Kf4 Bb7 42. Bh8 Bc6 43. Ke5 Ke7 44. Bf6+ Kf7 45. Bg5 Bb7 46. Kd6 Ba6 47. Kc6 Bc8 48. Kb5 e5 49. dxe5 Bf5 50. Kc5 Ke6 51. Bf6 Be4 1/2-1/2

[Event "3rd HoliCup Lake City 2019"]
[Site "Udaipur"]
[Date "2019.03.30"]
[Round "5"]
[White "Aaditya Dhingra"]
[Black "Dutta, Joydeep"]
[Result "1/2-1/2"]
[ECO "B01"]
[WhiteElo "1742"]
[BlackElo "2097"]
[Annotator "NA RC"]
[PlyCount "97"]
[EventDate "2019.??.??"]
[EventCountry "IND"]
[SourceTitle "playchess.com"]
[Source "ChessBase"]
[SourceQuality "1"]
[TimeControl "5400+30"]

1. e4 d5 2. exd5 Qxd5 3. Nf3 Nf6 4. d4 c6 5. Be2 Bf5 6. O-O {B01: Scandinavian Defence} Nbd7 (6... e6 7. c4 Qd6 8. Nh4 Bg6 9. Nc3 Be7 10. g3 O-O 11. Nxg6 hxg6 12. Bf4 {½-½ (25) Lupulescu,C (2620)-Laznicka,V (2654) Germany 2018}) 7. c4 Qa5 8. Nc3 e6 9. Bf4 Be7 10. a3 O-O 11. b4 Qd8 12. Qb3 Ne4 $146 ({Predecessor:} 12... a5 13. b5 {1-0 (53) Runic,Z (2448)-Jukic,Z (2295) Bizovac 2002}) 13. Nxe4 Bxe4 14. Rfd1 Qc8 15. Rac1 Re8 16. Nd2 Bf5 17. Nf1 h6 18. Ne3 Bh7 19. d5 c5 20. dxe6 fxe6 21. Ng4 Nf6 22. Qg3 Kh8 23. Ne5 Rf8 24. Bd3 Qe8 25. Bxh7 Kxh7 26. Qd3+ Kg8 27. Qh3 cxb4 28. Qxe6+ Kh7 29. axb4 Ng8 $2 ({Black should try} 29... Bxb4 $14 30. Qf5+ Kg8) 30. Nd3 (30. g3 $18 {is more deadly.}) 30... Bxb4 31. Qxe8 Raxe8 32. Rb1 a5 33. Be3 Re4 34. Nxb4 axb4 35. Rxb4 Rc8 36. h3 Rc7 37. Rdb1 Rexc4 38. Rxb7 Nf6 39. Rxc7 Rxc7 40. Rb5 Rd7 41. g4 Rd5 42. Rxd5 Nxd5 43. Bd2 g5 44. Kg2 Kg6 45. h4 Nf6 {[#]} (45... gxh4 $14 46. f4 h5) 46. f3 (46. h5+ $1 $18 Kf7 47. Kf3) 46... gxh4 47. Kh3 h5 48. g5 ({Don't do} 48. Kxh4 $6 hxg4 49. fxg4 Nd7 $16) 48... Ng8 $11 49. Be3 1/2-1/2

[Event "3rd HoliCup Lake City 2019"]
[Site "Udaipur"]
[Date "2019.03.30"]
[Round "5"]
[White "Garv Gaur"]
[Black "Anadkat Kartavya"]
[Result "0-1"]
[ECO "D02"]
[WhiteElo "1711"]
[BlackElo "1998"]
[Annotator "NA RC"]
[PlyCount "90"]
[EventDate "2019.??.??"]
[EventCountry "IND"]
[SourceTitle "playchess.com"]
[Source "ChessBase"]
[SourceQuality "1"]
[TimeControl "5400+30"]

1. d4 Nf6 2. Nf3 e6 3. c4 c5 4. g3 cxd4 5. Nxd4 d5 6. Bg2 Be7 7. O-O O-O 8. cxd5 Nxd5 9. Nb5 Nc6 $11 10. N5c3 Nb6 11. Nd2 e5 12. b3 Be6 13. Bb2 a5 14. Nf3 a4 15. Nxa4 Nxa4 16. bxa4 f6 17. Nd2 Qa5 18. Nb3 Qxa4 19. Bd5 Bxd5 20. Qxd5+ Kh8 21. Qd7 Qb5 22. Qg4 Ra4 23. Qf3 Rfa8 24. e4 Rxa2 25. Rxa2 Rxa2 26. Bc1 Kg8 27. h4 Qc4 28. Nd2 Nd4 29. Nxc4 Nxf3+ 30. Kg2 Nd4 31. Be3 b5 32. Nb6 Nc2 33. Bc1 Bc5 34. Nd5 b4 35. Bd2 b3 36. Nc3 Ra1 37. Rxa1 Nxa1 38. Nb1 Nc2 39. Bc1 Bd4 40. Kf3 b2 41. Be3 Nxe3 42. fxe3 Bc5 43. Ke2 h5 44. Kd2 Kf7 45. Nc3 Bb4 0-1

[Event "3rd HoliCup Lake City 2019"]
[Site "Udaipur"]
[Date "2019.03.30"]
[Round "5"]
[White "Gulhariya B K"]
[Black "Suvankar Maity"]
[Result "1/2-1/2"]
[ECO "A85"]
[WhiteElo "1691"]
[BlackElo "1911"]
[Annotator "NA RC"]
[PlyCount "123"]
[EventDate "2019.??.??"]
[EventCountry "IND"]
[SourceTitle "playchess.com"]
[Source "ChessBase"]
[SourceQuality "1"]
[TimeControl "5400+30"]

1. d4 d5 2. c4 e6 3. Nc3 f5 4. Nf3 c6 5. e3 Nf6 6. Bd3 Bd6 7. Bd2 O-O {A85: Dutch Defence: 2 c4 Nf6 3 Nc3} 8. Qb3 (8. O-O Ne4 9. Rc1 Nd7 10. Be1 Rf6 11. g3 Rh6 12. Nd2 Ndf6 13. f3 Nxc3 14. bxc3 g5 15. e4 fxe4 16. fxe4 e5 17. cxd5 cxd5 {½-½ (38) Wojtaszek,R (2701)-Fier,A (2595) Tromsoe 2013}) 8... Kh8 9. h4 $146 ({Predecessor:} 9. Ng5 Ne4 10. h4 Qf6 11. f4 b6 12. Ncxe4 fxe4 13. Be2 Ba6 14. g4 Nd7 {0-1 (30) Ataseven,E (1745)-Celebi,O (1909) Antalya 2013}) 9... Ne4 10. cxd5 exd5 11. Ne2 Nd7 12. g3 Ndf6 13. Nf4 Qe8 14. Bb4 Bxb4+ 15. Qxb4 a5 16. Qa3 Bd7 17. Ne5 Ng4 18. Bxe4 Nxe5 19. Bg2 Ng6 20. h5 Nxf4 21. gxf4 Rf6 22. O-O-O b6 23. Kb1 Qe6 24. Bf3 Be8 25. Rdg1 Rc8 26. Qb3 Rb8 27. Rg5 Qd6 28. Rhg1 Rf7 29. Qc2 Bd7 30. Qd2 Be6 31. Qc3 a4 32. R1g3 b5 33. Qe1 Rc7 34. Qg1 Qf8 35. Bd1 c5 36. Qe1 Rbc8 37. a3 Qd6 38. Qd2 Qc6 39. Rg1 b4 40. dxc5 bxa3 41. Qc3 a2+ 42. Ka1 Qxc5 43. Qxc5 Rxc5 44. Bxa4 Rc1+ 45. Rxc1 Rxc1+ 46. Kxa2 Rf1 47. Bc2 ({Better is} 47. Rg2 $16) 47... Rxf2 48. Bxf5 h6 49. Bxe6 hxg5 50. fxg5 Re2 51. Bxd5 Rxe3 52. h6 g6 53. Bf7 Kh7 54. b4 Re7 55. Bc4 Re5 (55... Re4 $5 56. Kb3 $8 Re3+ 57. Ka4 Re4 $14) 56. b5 Rxg5 57. b6 Ra5+ 58. Kb3 Ra8 59. Bd5 Rb8 60. b7 Kxh6 61. Kc4 Kg7 62. Kb4 $11 1/2-1/2

[Event "3rd HoliCup Lake City 2019"]
[Site "Udaipur"]
[Date "2019.03.30"]
[Round "5"]
[White "Anil, Shivpuri"]
[Black "Sudhanshu Ranjan"]
[Result "0-1"]
[ECO "D02"]
[WhiteElo "1605"]
[BlackElo "2056"]
[Annotator "NA RC"]
[PlyCount "98"]
[EventDate "2019.??.??"]
[EventCountry "IND"]
[SourceTitle "playchess.com"]
[Source "ChessBase"]
[SourceQuality "1"]
[TimeControl "5400+30"]

1. d4 d5 2. Bf4 Nf6 3. e3 e6 4. Nd2 Bd6 5. Bg3 c5 6. c3 Nc6 7. Ngf3 O-O 8. Bd3 b6 9. Ne5 Bb7 10. f4 Ne7 11. Qf3 Nf5 12. Bxf5 exf5 13. Bh4 Be7 14. Bxf6 Bxf6 15. Qh3 g6 16. Ndf3 Bg7 17. g4 fxg4 18. Qxg4 Bc8 19. Qg3 f6 20. Nd3 Bf5 21. O-O-O c4 22. Nf2 b5 23. Nh4 Bd7 24. Rhg1 a5 25. Kd2 b4 26. Qg2 Bc6 27. Nf5 Ra7 28. Nxg7 Rxg7 29. h4 Qe7 30. h5 bxc3+ 31. bxc3 Qa3 32. Rc1 Rb8 33. Nd1 Qxa2+ 34. Rc2 Qa3 35. Qh3 Bd7 36. Qg2 Qd6 37. Ra2 a4 38. Qh2 a3 39. hxg6 hxg6 40. Qh6 Bf5 41. Rh1 Kf7 42. Qh2 Qe7 43. Qe2 Kg8 44. Qh2 Re8 45. Qg3 Ra8 46. Nf2 Rb8 47. Nd1 Qe4 48. Nf2 Qxh1 49. Ne4 Qxe4 0-1

[Event "3rd HoliCup Lake City 2019"]
[Site "Udaipur"]
[Date "2019.03.30"]
[Round "5"]
[White "Dr, Sanjay Date"]
[Black "Ashutosh, Kumar"]
[Result "1/2-1/2"]
[ECO "D48"]
[WhiteElo "1605"]
[BlackElo "1952"]
[Annotator "NA RC"]
[PlyCount "115"]
[EventDate "2019.??.??"]
[EventCountry "IND"]
[SourceTitle "playchess.com"]
[Source "ChessBase"]
[SourceQuality "1"]
[TimeControl "5400+30"]

1. d4 Nf6 2. Nf3 d5 3. c4 c6 4. Nc3 e6 5. e3 Nbd7 6. Bd3 dxc4 7. Bxc4 b5 8. Bd3 Bb7 9. O-O a6 10. b3 c5 11. Bb2 cxd4 12. exd4 Be7 13. Re1 O-O 14. Qe2 Nb6 15. Rad1 Nbd5 {D48: Semi-Slav: Meran System: 7...b5 8 Bd3 a6} 16. Nxd5 Qxd5 17. Qe5 $146 ({Predecessor:} 17. Qf1 Bb4 18. Re5 Qd6 19. Ng5 h6 20. Ne4 Nxe4 21. Bxe4 Bxe4 22. Rxe4 Rac8 23. Qd3 {0-1 (42) Schmidt,J (2339)-Zhukova,N (2432) Kusadasi 2006}) 17... Rfc8 18. Qxd5 Bxd5 19. Ne5 Bb4 20. Re3 Kf8 21. g4 h6 22. f4 Rc7 23. Rf1 Nd7 24. h4 Nxe5 25. fxe5 Ke7 26. Re2 Bc3 27. Kf2 Rac8 28. Ke3 b4 29. Ref2 Bxb2 30. Rxb2 a5 31. Rbf2 Rf8 32. g5 hxg5 33. hxg5 Rcc8 34. Kd2 a4 35. bxa4 Bxa2 36. g6 f5 37. exf6+ Rxf6 38. Rxf6 gxf6 39. Rh1 f5 $1 40. Rh7+ Kf6 41. Rb7 b3 42. g7 Rg8 $2 {[#]} (42... b2 $1 $11 {and Black stays safe.}) 43. a5 $2 (43. Bc4 $1 $18) 43... Rxg7 $2 (43... b2 $11) 44. a6 $2 (44. Rxg7 $18 {is the precise move to win.} Kxg7 45. Bc4) 44... Rg8 45. Kc3 ({White should try} 45. a7 $16 b2 46. Rb8 (46. Rxb2 Bd5 $16) 46... Rg2+ 47. Kc3) 45... b2 $1 46. Kxb2 Bd5 47. Rb6 Rg3 48. Kc2 Rg2+ 49. Kc3 Ra2 50. Bc4 Bxc4 51. Kxc4 f4 52. d5 f3 53. Rxe6+ Kf5 54. Re1 Rxa6 55. Kc5 f2 56. Rf1 Ra2 57. d6 Ke6 58. Kd4 $11 {Kd5} 1/2-1/2

[Event "3rd HoliCup Lake City 2019"]
[Site "Udaipur"]
[Date "2019.03.30"]
[Round "5"]
[White "Govind Prabhu Mah"]
[Black "Anchit Vyas"]
[Result "1-0"]
[ECO "B08"]
[WhiteElo "1558"]
[BlackElo "1890"]
[Annotator "NA RC"]
[PlyCount "109"]
[EventDate "2019.??.??"]
[EventCountry "IND"]
[SourceTitle "playchess.com"]
[Source "ChessBase"]
[SourceQuality "1"]
[TimeControl "5400+30"]

1. e4 d6 2. d4 g6 3. Nc3 Nf6 4. Nf3 Bg7 5. Bd3 c6 6. Kf1 a5 7. Kg1 O-O 8. Qe2 Nbd7 9. e5 dxe5 10. dxe5 Ng4 11. e6 Nde5 12. exf7+ Rxf7 13. Ng5 Rf8 14. Bc4+ Kh8 15. h3 Nh6 $2 ({Black should play} 15... Nxf2 $19 16. Be3 Nxh1 17. Kxh1 Qc7) 16. Bb3 Nf5 17. Be3 Nd4 18. Bxd4 Qxd4 19. Rd1 Qf4 20. Nce4 h6 21. Ne6 Bxe6 22. Bxe6 Rad8 23. g3 Qf3 24. Qxf3 Nxf3+ 25. Kg2 Nd4 26. Bb3 Nxb3 {Discovered Attack (Double check)} 27. cxb3 Bxb2 28. Nc5 $1 Rd5 29. Rxd5 cxd5 30. Rd1 $11 (30. Nd7) 30... b6 31. Nd7 Rd8 32. Rxd5 e6 33. Rd3 Kg7 34. Kf3 h5 35. Ke4 h4 36. g4 Ba3 (36... Rc8 $16) 37. Nxb6 {Discovered Attack} Rb8 38. Nc4 Bb4 39. g5 Rb7 40. Ne5 Be1 41. f4 Rb4+ 42. Nc4 Rb7 43. Kf3 Rf7 44. Ne5 Rb7 45. Rd7+ Rxd7 46. Nxd7 Bb4 47. Ke4 Bd6 48. Ne5 Bb4 49. Kf3 Bd2 50. Kg4 Be1 51. Nf3 Bf2 52. Nxh4 Bxh4 53. Kxh4 Kf7 54. Kg4 Ke7 55. h4 1-0

[Event "3rd HoliCup Lake City 2019"]
[Site "Udaipur"]
[Date "2019.03.30"]
[Round "6"]
[White "Palit, Somak"]
[Black "Nanda, Kumar T.S."]
[Result "1-0"]
[ECO "C00"]
[WhiteElo "2330"]
[BlackElo "1846"]
[Annotator "NA"]
[PlyCount "61"]
[EventDate "2019.??.??"]
[EventCountry "IND"]
[SourceTitle "playchess.com"]
[Source "ChessBase"]
[SourceQuality "1"]
[TimeControl "5400+30"]

1. e4 e6 2. Qe2 c5 3. g3 Nc6 4. Bg2 Be7 5. Nf3 {LiveBook: 52 Games} Nf6 6. c3 {C00: French: Unusual White 2nd moves} O-O 7. O-O d5 8. e5 Nd7 9. d3 (9. d4 a5 10. Rd1 a4 11. h4 b5 12. Ng5 b4 13. a3 bxc3 14. bxc3 {1-0 (47) Kobalia,M (2620)-Morozevich,A (2656) Tula 2019}) 9... b5 10. Re1 b4 11. c4 Nb6 12. h4 a5 13. Bf4 Qc7 $146 ({Predecessor:} 13... Ba6 14. b3 Qd7 15. Nbd2 a4 {1-0 (28) Schneider,C (2116)-Mueller,D (1934) Willingen 2009}) 14. Nbd2 Ba6 15. Rac1 Rad8 16. Nf1 dxc4 17. dxc4 Nd4 18. Nxd4 cxd4 19. Nd2 Na4 20. Ne4 $11 Kh8 21. Qh5 Bb7 22. Nf6 gxf6 23. exf6 Bd6 24. Bxd6 Qxd6 25. Bxb7 Nc5 26. Re5 Nxb7 27. Qh6 Rg8 28. Qh5 Rgf8 29. Ree1 Qc7 30. Qh6 Rg8 31. Re5 1-0

[Event "3rd HoliCup Lake City 2019"]
[Site "Udaipur"]
[Date "2019.03.30"]
[Round "6"]
[White "Matta, Vinay Kumar"]
[Black "Govind Prabhu Mah"]
[Result "1-0"]
[ECO "C10"]
[WhiteElo "2146"]
[BlackElo "1558"]
[Annotator "NA"]
[PlyCount "41"]
[EventDate "2019.??.??"]
[EventCountry "IND"]
[SourceTitle "playchess.com"]
[Source "ChessBase"]
[SourceQuality "1"]
[TimeControl "5400+30"]

1. e4 e6 2. Nc3 d5 3. Nf3 dxe4 4. Nxe4 c5 5. d4 cxd4 6. Qxd4 Qxd4 7. Nxd4 a6 8. Bf4 f6 9. Nd6+ Bxd6 10. Bxd6 e5 11. Nb3 Nc6 12. O-O-O Bd7 (12... Bf5 $142) 13. Nc5 Bc8 14. Bc4 Nge7 15. Rhe1 Nf5 16. Bc7 g5 17. Bb6 Ke7 18. Ne4 Be6 $18 (18... Kf8 19. Nxf6 Kg7) 19. Bc5+ Kf7 20. Rd7+ Nce7 21. g4 1-0